Workbook

Sheet Tiitel
D11: Andmed ja valemid Excel'is

Sheet Sisukord
B2: Andmete tüübid Excelis
B3: Valemid ja avaldised
B4: Funktsioonid
B5: Arvandmed, -avaldised ja -funktsioonid
B6: Aadressite ja nimede kasutamine valemites. Harjutus "Kolmnurk"
B7: Harjutus "Täisnurkne kolmnurk "
B8: Arvavaldised - tehete prioriteedid, funktsioonid
B9: Loogikaandmed, -avaldised ja funktsioonid
B10: Võrdlused ja loogikatehted
B11: Võrdlused ja loogikatehted. Harjutused
B12: IF-funktsioon
B13: Palk & Kauba hind
B14: Funktsioonide tabel
B15: Ajaandmed, -avaldised ja -funktsioonid
B16: Tekstandmed, -avaldised ja funktsioonid
B17: Lisad
B18: Nimede määramine ja kasutamine
B19: Valideerimine
B20: Matemaatikafunktsioonid
B21: Tekstifunktsioonid
B22: Loogikafunktsioonid
B23: Ajafunktsioonid
B24: Otsimine. Funktsioon VLOOKUP
B25: Valemiredaktor MS Equation 3.0

Sheet Andmed
C1: Arvud | D1: Tekstid | E1: Ajaväärtused | F1: Tõeväärtused | H1: veeb
B2: Märkandmete tüübid
B3: Excelis eristatakse järgmisi andmetüüpe:
B4: - arvud | C4: 13 | D4: -745.625 | E4: =C4^13 -> 302875106592253 | G4: =10^308 -> 1e+308
B5: - tekstid | C5: Peeter | D5: Kask | E5: =LEFT(C5, 1) & ". " & D5 -> P. Kask
B6: - ajaväärtused | C6: =NOW() -> 2019-11-04T14:20:02.940 | D6: =TODAY() -> 2019-11-04 | E6: =NOW() -> 43773.59726 | G6: =TODAY() -> 2019-11-04 | H6: =G6-100 -> 2019-07-27
B7: - tõeväärtused | C7: TRUE | D7: FALSE | E7: ="mees" > "naine" -> FALSE
G9: 1254.214
B16: Eraldajad sõltuvalt keeleseadetest
B17: Liik | C17: Eesti/Vene | E17: USA/Inglise
C18: eraldaja | D18: näide | E18: eraldaja | F18: näide
B19: Arvud | C19: koma | D19: 13,05 | E19: punkt | F19: 13.05
B20: Kuupäevad | C20: punkt | D20: 13.05.2002 | E20: kaldkriips | F20: 05/13/01
B21: Kellaajad | C21: koolon | D21: 14:28:15 | E21: koolon | F21: 14:28:15
B22: Loetelud | C22: semikoolon | D22: a; b; c | E22: koma | F22: a, b, c
B23: NB! Keeleseadeid saab muuta Windowsis Control Panel'is

Sheet Valemid
C1: Funktsioonid | D1: Arvavaldised | E1: Tekstavaldised
C2: Loogikaavaldised | D2: Ajaavaldised | E2: veeb | F2: Ekraanivisioon "Valemid ja avaldised"
G13: =25*23 -> 575

Sheet Funktsioonid
C1: Funktsioonid | D1: Arvavaldised | E1: Tekstavaldised
C2: Loogikaavaldised | D2: Ajaavaldised | E2: veeb | F2: Ekraanivisioon "Funktsioonid"
G11: =SQRT(25) -> 5
G12: =1/(113/355) -> 3.14159292
G13: =PI() -> 3.141592654
G14: =TODAY() -> 2019-11-04
G15: =NOW() -> 2019-11-04T14:20:02.940

Sheet Arvud
F1: Matemaatikafunktsioonid | I1: veeb | J1: Ekraanivisioon "Arvandmed ja -avaldised"
B2: Arvandmed, -avaldised ja -funktsioonid
B3: Lahtritesse sisestatavad arvud võivad lisaks numbritele sisaldada ainult järgmisi märke
B4: Märk | C4: Tähendus ja kasutamine | J4: Näide | K4: Proov
B5: - ja + | C5: Arvu märk. + ei ole vajalik ning seda ei kuvata: -678,54 +137 | J5: -13.56
B6: , | C6: Murdosa eraldaja: 562,75 ,75 => 0,75 75, => 75 | J6: 0.75
B7: e või E | C7: Eksponendi eraldaja: 2,1e6 => 2,1·106 4e-8 => 2,38·10-8 | J7: 2100000
B8: ( ) | C8: Negatiivse arvu alternatiivesitus: (562,75) => -562,75 | J8: -5376
B9: = | C9: Valemi erijuht: =562,75 => 562,75 =-562,75 => -562,75 | J9: =562.75 -> 562.75
B10: € | C10: Rahavormingu tunnus: 562,75€ | J10: 4940
B11: % | C11: Protsenditehe: 18% => 0,18. Eelnev väärtus jagatakse 100-ga | J11: 0.13
B12: tühik | C12: Kolmikute eraldaja arvu täisosas: 3 456 562,75 | J12: 3456562.72
B13: / | C13: Tavaline murd: 562 3/4 => 562,75 | J13: 562.75
B19: Aritmeetikatehted ja nende prioriteedid
B20: Prioriteet | C20: Tehe | D20: Kommentaar
B21: 1 | C21: % | D21: protsent: 18% = 0,18 10%*130 = 13
B22: 2 | C22: ^ | D22: astendamine (Alt+94): (x+2)^3 (x+2)^(1/3)
B23: 3 | C23: * , / | D23: korrutamine, jagamine: a*b a/b 2*(a+b)/d
B24: 4 | C24: + , - | D24: liitmine, lahutamine: a+b a-b
B27: Vt. lehte | C27: Matemaatikafunktsioonid
B28: Arvude põhivormingud (esitusviisid). Täpsemalt vaata töövihikut | H28: Vormindamine.xls
B29: Nimetus ja kood | C29: Tähendus, arvude esitusviis | J29: Näided
B30: General | C30: Üldine. Kehtib, kui lahtrile pole määratud mingit teist vormingud. Väärtus kuvatakse sellisel kujul nagu ta sisestatakse või saadakse valemist. | J30: 3562.725
B31: Number 0,00… | C31: Püsikoma. Määrab murdosa pikkuse d. Arv 562,725: d=2 => 562,73; d=5 => 562,72500; d=0 => 563 | J31: 3562.725
B32: Scientific 0,00...E+00 | C32: Ujukomaarv ehk eksponent: 5,6275E+02 | J32: 3562.725
B33: Currency # ##0,00 kr | C33: Raha. 54 562,40 €. Arvu järele lisatakse €, murdosas 2 kohta, kolmikud täisosas eraldatakse tühikutega. | J33: 3562.725
B34: Percentage 0,0...% | C34: Protsent: 18%. Väärtus kuvatakse korrutatuna 100-ga, lisatakse %. Säilitatav väärtus ei muutu. | J34: 0.18
B35: Text @ | C35: Tekst. Ka arvu käsitletakse tekstina. Kui vorming on määratud enne sisestamist, säilitakse kõik märgid. | J35: 3562,725
B36: Custom | C36: Kasutajavorming. Luuakse olemasolevate vormingute alusel. Näiteks vorming 0,00” cm” kuvab arvu järel sümbolid cm. | J36: 37.58

Sheet Juhus
B2: Juhuslikud arvud. Funktsioon RAND()
B10: mini | C10: 1 | D10: maxi | E10: 64
M11: keskmine
B12: 6 | C12: 7 | D12: 10 | E12: 27 | F12: 31 | G12: 32 | H12: 38 | I12: 53 | J12: 61 | K12: 63 | M12: =IF(INDEX(numbrid, 10)="", "", AVERAGE(numbrid)) -> 32.8
I64: a | J64: 1 | K64: b | L64: 100

Sheet Kolmnurk
E1: Valemid | F1: Funktsioonid | H1: Nimed | I1: veeb | J1: Ekraanivisioonid
B2: Kolmnurga ja selle siseringi pindalad | J2: kolmnurk, aadressid
J3: kolmnurk, nimed
B4: 1) Kolmnurga karakteristikud: aadressid
B6: a | C6: 3
B7: b | C7: 4
B8: c | C8: 5
B9: S | C9: =SQRT(C11*(C11-C6)*(C11-C7)*(C11-C8)) -> 6
B10: Sr | C10: =PI()*C12^2 -> 3.141592654
B11: p | C11: =(C6+C7+C8)/2 -> 6
B12: r | C12: =C9/C11 -> 1
B15: 2) Kolmnurga karakteristikud: nimed | J15: Abisuurustena tuleks leida pool kolmnurga ümbermõõdust ja siseringi raadius (vt. valemeid). NB! Valemite sisestamise järjekord ei ole oluline. Valemid arvutatakse ümber iga kord, kui mingi lahtri väärtus muutub (kui Exceli seadetes on nii määratud).
B17: a | C17: 3 | E17: Nime määramine üksikule lahtrile
B18: b | C18: 4
B19: c | C19: 5 | E19: Nimede määramine korraga mitmele lahtrile
B20: S | C20: =SQRT(p*(p-a)*(p-b)*(p-c_)) -> 6
B21: Sr | C21: =PI()*r_^2 -> 3.141592654
B22: p | C22: =(a+b+c_)/2 -> 6
B23: r | C23: =S/p -> 1

Sheet T_Kolmnurk
E1: Valemid
B2: Kolmnurga karakteristikud
B4: a | C4: 5 | D4: cm
B5: b | C5: 3 | D5: cm
B6: S | C6: =0.5*a*b -> 7.5
B7: Sr | C7: =PI()*r_^2 -> 3.695117468
B8: c | C8: =SQRT(a^2+b^2) -> 5.830951895
B9: p | C9: =(a+b+c_) -> 13.83095189
B10: r | C10: =2*S/p -> 1.084524053

Sheet Arv_Avald
F1: Matemaatikafunktsioonid
B2: Arvavaldised ja -funktsioonid
D3: a | E3: b | F3: c | G3: x | H3: y
D4: 6 | E4: -2 | F4: 5 | G4: 5 | H4: 3
B6: Nr | C6: Exceli valem | D6: Valem | H6: Vastus
B7: 1 | C7: =a*b/c_ -> -2.4 | H7: =a*b/c_ -> -2.4
B8: 2 | C8: =a/(b*c_) -> -0.6 | H8: =a/(b*c_) -> -0.6
B9: 3 | H9: =(a+x)/(b+y) -> 11
B10: 4 | H10: =(a+x)/(b*y) -> -1.833333333
B11: 5 | C11: =(PI() * (a+x)^2)/(b^2*y^3) -> 3.519747325 | H11: =PI()*(a+x)^2/(b^2*y^3) -> 3.519747325
B12: 6 | H12: =SQRT(x^2+y^2) -> 5.830951895
B13: 7 | H13: =SQRT(b^2+4*a*c_)/(3*b) -> -1.855921454
B14: 8 | C14: =(x^2 + y^2)^ (1/3) -> 3.239611801 | H14: =(x^2+y^2)^(1/3) -> 3.239611801
B15: 9 | H15: =((y+c_^2)/(a+b))^(3/4) -> 4.303517071
B16: 10 | H16: =LOG(ABS(a^3+(x^2+2.76)^(1/3))) -> 2.340499416
B17: 11 | C17: =(2*EXP(x)+EXP(-2*x))/(a^2+b^2) -> 7.42065909 | H17: =(2*EXP(x)+EXP(-2*x))/(a^2+b^2) -> 7.42065909
B18: 12 | C18: =SIN(2*x)+COS(x ^2) - SIN(x)^2 -> -0.4723540636 | H18: =SIN(2*x)+COS(x^2)-SIN(x)^2 -> -0.4723540636
B19: 13 | H19: =2*SIN((a+b)/2)^2*COS((a+b)/2)^3 -> -0.1191740538
B20: 14
B21: 15
B22: 16

Sheet Loogika_1
D1: veeb | E1: Ekraanivisioon "Loogikaandmed ja -avaldised"
B2: Loogikaandmed (tõeväärtused), -avaldised ja funktsioonid | I2: 5 | J2: 5 | K2: =I2=J2 -> TRUE
B4: Väärtused ja tehted | E4: Võrdlused
B6: Näited. Arvude võrdlemine | I6: Näited. Loogiline ja (and), või (or) ja eitus
E7: =IF(a=b,"Võrdub!", "Ei võrdu") -> Ei võrdu
B8: a | C8: b | D8: x | E8: a = b | F8: a > b | G8: a <= b | I8: avaldis1 | J8: avaldis2 | K8: AND (avaldis1; avaldis2) | L8: OR (avaldis1; avaldis2) | M8: NOT (avaldis1)
B9: 3 | C9: 12 | D9: 2 | E9: =a = b -> FALSE | F9: =a > b -> FALSE | G9: =a <= b -> TRUE | I9: TRUE | J9: TRUE | K9: =AND(I9,J9) -> TRUE | L9: =OR(I9,J9) -> TRUE | M9: =NOT(I9) -> FALSE
I10: TRUE | J10: FALSE | K10: =AND(I10,J10) -> FALSE | L10: =OR(I10,J10) -> TRUE | M10: =NOT(I10) -> FALSE
B11: a <= x <= b | C11: a <= x | D11: (a <= x) <= b | E11: AND( a <= x; x <= b) | I11: FALSE | J11: TRUE | K11: FALSE | L11: TRUE | M11: TRUE
B12: =a <= x <= b -> FALSE | C12: =a <= x -> FALSE | D12: =C12 <= b -> FALSE | E12: =AND( x>=a, x <= b) -> FALSE | I12: FALSE | J12: FALSE | K12: FALSE | L12: FALSE | M12: TRUE
E13: =(x>=a)*(x<=b) -> 0 | I13: avaldis1, avaldis2 väärtused saadakse üldjuhul võrdlusoperatsioonide või muude loogikatehete tulemusel
B15: Näited. Tekstide võrdlemine
B17: T_1 | C17: T_2 | D17: T_1 = T_2 | E17: T_1 > T_2 | H17: A
B18: B | C18: A | D18: =T_1 = T_2 -> FALSE | E18: =T_1 > T_2 -> TRUE | H18: B
A19: kood | B19: =CODE(T_1) -> 66 | C19: =CODE(T_2) -> 65 | H19: C
H20: a
B21: A | C21: B | D21: AND | E21: OR | F21: NOT A | H21: b
B22: TRUE | C22: TRUE | D22: TRUE | E22: TRUE | F22: FALSE | H22: c
B23: TRUE | C23: FALSE | D23: FALSE | E23: TRUE | F23: FALSE | H23: k
B24: FALSE | C24: FALSE | D24: FALSE | E24: FALSE | F24: TRUE | H24: m
H25: x
H26: z
H27: Malle
H28: Juku
H29: Kalle
H30: Kalju

Sheet Loogika_2
D1: veeb | F1: Ekraanivisioon "Loogikaandmed ja -avaldised"
B2: Loogikaandmed, -avaldised ja funktsioonid. Harjutused
B4: Testike ehk viktoriinike
B5: Küsimus | F5: Vastus | G5: Hinnang
B6: Mitu veergu on Excel 2013 töölehel? | G6: =F6=16384 -> FALSE
B7: Mitu rida on Excel 2013 töölehel? | G7: =F7=H7 -> FALSE | H7: 1048576
B8: Mis aastal loodi esimene personaalarvuti? | H8: 1976
B9: Mis firmas see loodi? | H9: Apple | J9: 16 384
B10: Mis aastal loodi esimene mikroprotsessor? | H10: 1971
B11: Mis firmas see loodi? | H11: Intel
B16: AND ja OR-funktsioonide kasutamine
E17: Koostada valem, mis on tõene, kui
B18: a | E18: kui 0 < a <= 100
B19: b | E19: kui c <= b <= a
B20: c | E20: kui c < b või c>= a
B21: täht | E21: kui täht on a, b või c
E22: kui kehtib kolmnurga külgede (a, b, c) tingimus

Sheet IF_Fun
D1: veeb | E1: Ekraanivisioon "Loogikaandmed ja -avaldised"
B3: IF-funktsioon
B5: Jälle viktoriinike
B6: Küsimus | F6: Vastus | G6: Hinnang
B7: Mitu veergu on Excel 2013 töölehel? | F7: 16584 | G7: =IF(F7=16384, "Õige!", "Vale!") -> Vale!
B8: Mis aastal loodi esimene personaalarvuti? | F8: 1976 | G8: =IF(F8 = H8, "Õige!", "Vale!") -> Õige! | H8: 1976
B9: Mis firmas see loodi? | F9: Apple | G9: =IF(F9=H9,1,0) -> 1 | H9: Apple
B10: Mis aastal loodi esimene mikroprotsessor? | G10: =IF(F10=H10,2,IF(ABS(F10-H10)<=2,1,0)) -> 0 | H10: 1971
B11: Mis firmas see loodi? | F11: Intel | G11: =IF(F11 = "", "", IF(F11 = H11, 2, 0)) -> 2 | H11: Intel
B12: Mis on kõikide leiutiste ja pahede alus? | G12: =IF(F12 = "", "", IF(F12 = H12, 2, 0)) -> 
B15: Keele test
C16: Punkte: | D16: =SUM(D18:D25) -> 6
B17: eesti | C17: inglise | D17: hinnang
B18: koer | C18: dog | D18: =IF(C18 = "", "", IF(C18 = E18, 1, 0)) -> 1 | E18: dog
B19: kass | C19: cat | D19: =IF(C19 = "", "", IF(C19 = E19, 1, 0)) -> 1 | E19: cat
B20: laud | C20: table | D20: 1 | E20: table
B21: lahter | C21: cell | D21: 1 | E21: cell
B22: arv | C22: number | D22: 1 | E22: number
B23: kui | C23: if | D23: 1 | E23: if
B27: Andmete kontroll
B28: Tähis | C28: Väärtus | D28: Kontroll
B29: a | D29: =IF(OR(a="",AND(a>0,a<=100)),"", "Viga!") ->  | E29: 0 < a <= 100
B30: b | E30: c <= b <= a
B31: c | E31: c < b või c>= a
B32: täht | E32: Täht on k, p või t
D33: =IF(OR(a="", b="", c_=""), "", IF(AND(a+b>c_, a+c_>b, b+c_>a),"", "Kolnurka ei ole!")) ->  | E33: Veateade kuvatakse, kui lahtrid a, b ja c ei ole tühjad, pole neg. arvud ja kolmnurga tingimus ei kehti (ei saa moodustada kolmnurka küljepikkustega a, b jac).

Sheet Palk_Kaup
D1: IF-funktsioon | F1: veeb
B3: Tunnitasuliste kuupalk ja tulumaks
B5: maksuvaba | C5: 144 | D5: protsent | E5: 0.21
B7: tariif | C7: tunde | D7: palk | E7: maks | F7: saada
B8: 7 | C8: 130
B12: Kauba hind sõltuvalt kogusest

Sheet Fun_IF
D1: IF-funktsioon | G1: veeb
B3: Funktsioonide väärtused
B5: algus | C5: -5 | D5: samm | E5: 1
B7: x | C7: y | D7: z
B8: =algus -> -5
B9: =B8+samm -> -4
B10: -3
B11: -2
B12: -1
B13: 0
B14: 1
B15: 2
B16: 3
B17: 4
B18: 5

Sheet Viktoriin
B3: Viktoriinike
C4: Punkte
B6: Küsimus | C6: Vastus | D6: Hinnang | E6: O_vastus | F6: Lubatud viga
B7: Pekingi olümpiavõitja kettaheites (ees ja perenimi)? | E7: Gerd Kanter
B8: Mitu sentimeetrit on ühes tollis? | E8: 2.54 | F8: 0.05
B9: Mis aastal oli esimene inimene Kuul? Täpne vastus 2p, ±2 aastat - 1 p | E9: 1969 | F9: 2
B10: Kas piaal on: A - kala, B - jooginõu, C - lind, D - ehiusdetail? | C10: D | E10: B
B11: Mis aastal toimus Waterloo lahing: A-1915, B-1795, C-1815, D-1940? | C11: B | E11: C

Sheet Detailike (hidden)
E1: Materjalid | G1: Värvid
B3: Minirakendus "Detailike"
B17: Analüüs
B18: Algandmed: | D18: b, h, d, L - mõõtmed (cm), materjali mark, värvi mark
B19: Tulemid: | D19: m_kogus - materjali kogus (m3), v_kogus - värvi kogus (liiter)
D20: m_maks - materjali maksumus, v_maks - värvi maksumus
D21: maks_kokku - maksumus kokku
B22: Vaheandmed: | D22: V - ruumala (m3) , S - täispindala (m2)
D23: A - ristlõike pindala (cm2), P - ristlõike ümbermõõt (cm)
D24: m_hind - materjali hind, v_hind - värvi hind, v_kulu - värvi kulu m2 tabelitest

Sheet Det_Skeem_Val (hidden)
E1: Joonestamine | G1: Valemiredaktor
B3: Minirakendus "Detailike". Skeem ja valemid

Sheet Kasutajaliides (hidden)
D1: Materjalid | E1: Värvid | F1: Valideerimine | G1: Otsimine
B2: Detail. Disain & realisatsioon
B4: Detaili geomeetria
B6: L | C6: 700 | D6: cm
B7: h | C7: 90 | D7: cm
B8: b | C8: 70 | D8: cm
B9: d | C9: 30 | D9: cm
B10: ruum | D10: m3
B11: pind | D11: m2
B12: A | D12: cm2
B13: P | D13: cm
B15: Materjali ja värvi koguse ning detaili maksumuse kalkulatsioon
C17: mark | D17: hind | E17: kogus | F17: maksumus | G17: Muud kulud
B18: Materjal | G18: 0.5
B19: Värv
E20: Materjal ja värv kokku
E21: Maksumus kokku

Sheet Materjalid (hidden)
B3: Rakendus Detail. | D3: Materjalid
B5: Materjali margid ja hinnad
B7: Mark | C7: Hind €/m3
B8: Ma_11 | C8: 36
B9: Ma_12 | C9: 35
B10: Ma_05 | C10: 35
B11: Ma_06 | C11: 33
B12: Ma_08 | C12: 32
B13: Ma_07 | C13: 30
B14: Ma_09 | C14: 29
B15: Ma_10 | C15: 29
B16: Ma_03 | C16: 23
B17: Ma_13 | C17: 23
B18: Ma_04 | C18: 21
B19: Ma_18 | C19: 21
B20: Ma_02 | C20: 17

Sheet Värvid (hidden)
B3: Rakendus Detail. | D3: Värvid
B5: Värvide margid, kulu ja hinnad
B7: Mark | C7: Kulu L/m2 | D7: Hind €/L
B8: Sv_01 | C8: 0.43 | D8: 4.2
B9: Sv_02 | C9: 0.3 | D9: 3.16
B10: Sv_03 | C10: 0.35 | D10: 3.2
B11: Sv_04 | C11: 0.35 | D11: 1.9
B12: Sv_05 | C12: 0.4 | D12: 3.5
B13: Sv_06 | C13: 0.35 | D13: 2.9
B14: Sv_07 | C14: 0.45 | D14: 3.5
B15: Sv_08 | C15: 0.3 | D15: 4.12
B16: Sv_09 | C16: 0.35 | D16: 3.3
B17: Sv_10 | C17: 0.4 | D17: 2.6
B18: Sv_11 | C18: 0.3 | D18: 4.1
B19: Sv_12 | C19: 0.42 | D19: 2.18
B20: Sv_13 | C20: 0.5 | D20: 2.2

Sheet Aeg
D1: Ajafunktsioonid | F1: veeb | G1: ekraanivisioon
B3: Ajaandmed, -avaldised ja -funktsioonid
B5: Ajaväärtuste esitusviisid
B7: =NOW() -> 2019-11-04T14:20:02.940 | E7: =NOW() -> 43773.59726
B9: =TODAY() -> 2019-11-04 | E9: =TODAY() -> 43773
B11: Operatsioonid kuupäevadega ja kellaaegadega | I11: Mõnede ajafunktsioonide kasutamine
B13: Palju on jäänud aega etteantud kuupäevani? | I13: täna | J13: =TODAY() -> 2019-11-04 | K13: =TODAY()
I14: praegu | J14: =NOW() -> 2019-11-04T14:20:02.940 | K14: =NOW()
B15: ek | C15: =DATE(YEAR(TODAY())+1,1,1) -> 2020-01-01 | D15: etteantud kuupäev | I15: aasta | J15: =YEAR(täna) -> 2019 | K15: =YEAR(täna)
B16: v | C16: =ek-NOW() -> 57.40274375 | D16: etteantud kuupäeva ja praeguse hetke vahe | I16: kuu | J16: =MONTH(täna) -> 11 | K16: =MONTH(täna)
B17: p | C17: =INT(v) -> 57 | D17: päeva | I17: päev | J17: =DAY(täna) -> 4 | K17: =DAY(täna)
B18: t | C18: =HOUR(v) -> 9 | D18: tundi | I18: nädalapäeva nr | J18: =WEEKDAY(täna,2) -> 1 | K18: =WEEKDAY(täna; 2)
B19: m | C19: =MINUTE(v) -> 39 | D19: minutit | I19: nädala nr | J19: =WEEKNUM(täna,2) -> 45 | K19: =WEEKNUM(täna; 2)
B20: s | C20: =SECOND(v) -> 57 | D20: sekundit | I20: tunnid | J20: =HOUR(praegu) -> 14 | K20: =HOUR(praegu)
B21: as | C21: =86400*v -> 4959597.06 | D21: aeg sekundites | I21: minutid | J21: =MINUTE(praegu) -> 20 | K21: =MINUTE(praegu)
I22: sekundid | J22: =SECOND(praegu) -> 3 | K22: =SECOND(praegu)
I23: kuupäev | J23: =DATE(J15,J16,J17) -> 2019-11-04 | K23: =DATE(J15;J16;J17)
B24: Millal on põhjust täiendavaks juubelipeoks? | I24: kellaaeg | J24: =TIME(J20,J21,J22) -> 14:20:03 | K24: =TIME(J18;J19;J20)
B26: sk | C26: 1991-10-26 | D26: Sünnikuupäev
B27: evp | C27: 10000 | D27: Etteantud vanus päevades (kena ümmargune arv)
B28: vp | D28: Vanus päevades praegu
B29: va | D29: Vanus aastates praegu
B30: jk | D30: Juubeli kuupäev (suur ümmargune elatud päevade arv)
B31: vaj | D31: Vanus aastates selle juubeli ajal

Sheet Aeg nuputamiseks
B5: Aasta | C5: Jõulud | D5: 1995-03-05 | E5: 1. advent | F5: Andresepäev | G5: A nädalapäev | H5: Pühapäev enne andresepäeva
B6: 1980
B7: 1985
B8: 1990
B9: 1995
B10: 2000
B11: 2005
B12: 2010
B13: 2015
B14: 2020
F16: n
F17: 8
B18: Kuupäevad | C18: Selle kuu 5. päev | D18: Kuupäev kahe nädala pärast | E18: järgmise kuu 16. päev | F18: järgmise kuu n päev
B19: 2010-09-02
B20: 1987-09-06
B21: 2000-09-25
B22: 2013-07-02
B23: 1965-01-07
C28: 1. kodutöö | D28: 2. kodutöö | E28: 3. kodutöö
B29: Tähtajad | C29: 2015-09-30 | D29: 2015-10-30 | E29: 2015-11-13
C32: Esitatud 1 | D32: Esitatud 2 | E32: Esitamisprognoos
B33: Aivar | C33: =C$29-7+INT(RAND()*14) -> 2015-09-25 | D33: =D$29-7+INT(RAND()*14) -> 2015-10-25
B34: Kaspar | C34: =C$29-7+INT(RAND()*14) -> 2015-09-29 | D34: =D$29-7+INT(RAND()*14) -> 2015-10-28
B35: Britta | C35: =C$29-7+INT(RAND()*14) -> 2015-09-23 | D35: 2015-10-27
B36: Vahur | C36: 2015-10-01 | D36: 2015-10-30
B37: Teet | C37: 2015-09-24 | D37: 2015-10-23
B38: Joosep | C38: 2015-09-24 | D38: 2015-11-04
B39: Kusti | C39: 2015-10-06 | D39: 2015-11-03
B40: Teele | C40: 2015-09-26 | D40: 2015-11-03

Sheet Tekst
C1: Tekstifunktsioonid | E1: veeb | F1: ekraanivisioon
B3: Tekstandmed, -avaldised ja funktsioonid
B4: Tekst võib kujutada endast suvalist märkide jada. Kui sisend ei ole tõlgendav valemina, arvuna või ajaväärtusena (kuupäevana ja/või kellaajana), siis käsitleb Excel seda tekstiks.
B5: Tekst joondatakse vaikimisi lahtri vasakusse serva. Teksti pikkus ei ole praktiliselt piiratud (kuni 32 000 märki!). Tekst lahtris võib paikneda mitmel real. Seda saab määrata korraldusega: Format/Cells/Alignment/Wrap text Ülemineku uuele reale kindlas kohas lahtri sees saab määrata klahvikorraldusega Alt+Enter.
B7: Tekstivalemid ja -avaldised
B9: Mõned valemid, mis on seotud tekstide ühendamise ja eraldamisega
B10: Vt. kommentaare tabeli päises. Esimeses reas on tulemuste näited.
B12: Perenimi | C12: Eesnimi | D12: Eesnimi ja perenimi | E12: Eesnime esitäht ja perenimi | F12: Nime pikkus | G12: Perenimi suurtähtedega
B13: Kask | C13: Kalle | D13: Kalle Kask | E13: K. Kask | F13: 10 | G13: KASK | H13: Tulemite soovitav kuju
B14: Saar | C14: Tiina
B15: Kasemets | C15: Marge
B16: Männik | C16: Rein
D28: Nimi | E28: Eesnimi | F28: Perenimi | G28: Tühiku asukoht | H28: Ees- ja Perenime saab eraldada ka korraldusega Andmed / Tekst veergudesse
D29: Kalle kask | E29: Kalle | F29: Kask | G29: 6
D30: Tiina Saar
D31: Marge Kasemets
D32: Rein Männik

Sheet Isikukood
B4: Isikukoodi dekodeerimine | E4: ekraanivisioon
B6: Isikukood | C6: Eesnimi | D6: Perenimi | E6: Sugu | F6: Sünniaeg | G6: Vanus
B7: 37807240251 | C7: Karl | D7: Kask | E7: mees | F7: 1978-07-24 | G7: 20
B8: 48011250013 | C8: Karin | D8: Kask
B9: 37503120543 | C9: Lembit | D9: Laisk
B10: 41012240021 | C10: Tiina | D10: Usin
B11: 51009060302 | C11: Kevin | D11: Raud
B12: 60204050936 | C12: Mia | D12: Õunapuu

Sheet Valideerimine
B3: Valideerimine - sisendandmete kontroll
B5: Määrata lahtritele näidatud valideerimise tingimused
B6: Töötajate arv | C6: 13 | D6: täisarv 1 kuni 100
B7: pikkus | C7: 45.6 | D7: reaalarv vahemikus 20 kuni 200
B8: laius | C8: 72.4 | D8: reaalarv vahemikus 20 kuni 200
B11: Valideerimine - väärtuse valimine loendist | G11: Liigid | I11: Päevad
G12: haab | I12: esmaspäev
B13: sugu | C13: naine | D13: naine või mees | G13: kask | I13: teisipäev
B14: puu liik | D14: kasutada kõrvalolevat loendit | G14: kuusk | I14: kolmapäev
B15: nädalapäev | D15: loendist nimega päevad | G15: lepp | I15: neljapäev
G16: mänd | I16: reede
G17: paju | I17: laupäev
G18: saar | I18: pühapäev
G19: tamm
G20: vaher

Sheet Lisad
C9: Lisad

Sheet Nimed
B3: Nimede määramine ja kasutamine
B5: Nimede esitusreeglid
B7: Globaalsed ja lokaalsed nimed | E7: Nimede paigutamine valemitesse
B9: Nime määramine lahtrile või lahtriplokile
B11: Nimekasti abil | F11: Hinnakiri
B12: Pikkus | C12: Laius | D12: Pindala | F12: Liik | G12: Hind
B13: 5 | C13: 4 | F13: haab | G13: 675
F14: kask | G14: 790
F15: kuusk | G15: 935
F16: lepp | G16: 640
F17: mänd | G17: 850
F18: tamm | G18: 1200
B20: Korraldustega Define Name
D21: vanus
B24: Korralduse Name Manager kasutamine
B25: Proovige
B32: Nimede loomine korraldusega Create from Selection
B34: Silindri ruumala ja täispindala | E34: Kauba maksumus
B35: r | C35: 3 | E35: Liik | F35: Hind | G35: Kogus | H35: Maksumus
B36: h | C36: 10 | E36: =F14 -> kask | F36: =G14 -> 790 | G36: 36
B37: V
B38: S

Sheet MatFun
B2: Matemaatikafunktsioonid
B3: Argumendid: a - arvavaldis(erijuhul konstant või lahtriviit), p - lahtriplokk, ap - arvavaldis või lahtriplokk
B4: Nurksulgudes näidatud argumendid ei ole kohustuslikud
B5: ABS(a) | C5: Absoluutväärus
B6: ACOS(a) | C6: Arkuskoosinus radiaanides. -1<= a <=1
B7: ASIN(a) | C7: Arkussiinus radiaanides. -1<= a <=1
B8: ATAN(a) | C8: Arkustangens radiaanides.
B9: COS(a) | C9: Koosinus. Argument radiaanides
B10: DEGREES(a) | C10: Teisendab radiaanid kraadideks
B11: EXP(a) | C11: Eksponent: e^a, kus e=2,718… on naturaallogaritmi alus
B12: FACT(a) | C12: Faktorial: a!. 0<= a <= 170
B13: INT(a) | C13: Ümardab arvu lähima täisarvuni, mis on väiksem kui a
B14: LN(a) | C14: Naturaallogaritm (alus e=2,718…). a>0
B15: LOG(a [; alus ]) | C15: Logaritm antud alusega, kui puudub, siis 10. a>0, alus>0
B16: LOG10(a) | C16: Logaritm alusega 10. a>0
B17: MDETERM(p) | C17: Lahtriplokis asuva maatriksi deteminant
B18: MINVERSE(p) | C18: Lahtriplokis asuva maatriksi pöördmaatriks.
B19: MMULT(p1;lp2) | C19: Lahhtriplokkides lp1 ja lp2 asuvate maatriksite korrutis
B20: MOD(a;b) | C20: Jagatise a/b jääk
B21: MROUND(a;täpsus) | C21: Ümardab arvu etteantud täpsusega
B22: PI() | C22: Pii = 3,141592654
B23: RADIANS(a) | C23: Teisendab graadid radiaanideks
B24: RAND() | C24: Juhuslik arv vahemikus 0 kuni 1
B25: ROUND(a;n) | C25: Ümardab a väärtuse n koma- või kümnendkohani
B26: SIGN(a) | C26: Arvu märk: 1 - + (positiivne), -1(negatiivne); 0 - null
B27: SIN(a) | C27: Siinus. Argument radiaanides
B28: SQRT(a) | C28: Ruutjuur. a>=0
B29: SUM(ap1 [ ; ap2 ] …) | C29: Argumentide väärtuste summa
B30: TAN(a) | C30: Tangens. Argument radiaanides
B31: TRUNC(a) | C31: Arvu täisosa

Sheet TekstFun
D1: Matemaatikafunktsioonid | H1: Ajafunktsioonid | K1: Loogikafunktsioonid
B2: Tekstifunktsioonid
B3: CHAR(arv) | E3: Tagastab avaldise väärtusele vastava ASCII märgi. 1<=arvav<=255. CHAR(65) = A | L3: kood | M3: märk
L4: 65 | M4: =CHAR(L4) -> A
B5: CODE(tekst) | E5: Tagastab tekstavaldise esimesele märgile vastava ASCII koodi. CODE("A") = 65 | L5: märk | M5: kood
L6: A | M6: =CODE(L6) -> 65
E7: Seda teksti kasutatakse järgmistes näidetes
B8: FIND(tekst1;tekst2 [ ; m] ) | E8: Leiab positsiooni numbri, millest alatest tekst1 sisaldub tekst2-s. Otsimimist alustatakse positsioonist m | L8: =FIND("tekst",E7) -> 6 | M8: =FIND(" ",E7) -> 5
B9: LEFT(tekst [ ; n ] ) | E9: Eraldab tekstist n vasakpoolset märki, vaikimisi 1. | L9: =LEFT(E7,4) -> Seda | M9: =LEFT(E7,M8-1) -> Seda
B10: LEN(tekst) | E10: Leiab teksti pikkuse (märkide arvu tekstis) | L10: =LEN(E7) -> 51 | M10: =LEN(TRIM(E7)) -> 43
B11: MID(tekst;m;n) | E11: Eraldab tekstist n märki alates märgist numbriga m | L11: =MID(E7,6,5) -> tekst | M11: =MID(E7,L8,5) -> tekst
B12: RIGHT(tekst;[ n ]) | E12: Eraldab tekstist n parempoolset märki, vaikimisi 1 | L12: =RIGHT(E7,8) -> idetes | M12: =RIGHT(TRIM(E7),8) -> näidetes
B13: TRIM(tekst) | E13: Eemaldab tekstist tühikud, jättes sõnade vahele ühe tühiku | L13: =TRIM(E7) -> Seda teksti kasutatakse järgmistes näidetes
B15: Tekstid salvestatakse ASCII koodis, kus igale märgile vastab kindel arv (8-bittine kood)
B16: Tabelis on funktsiooni CHAR abil toodud igale koodile (0…255) vastav kood
B17: Kood | C17: Märk | D17: Kood | E17: Märk | F17: Kood | G17: Märk | H17: Kood | I17: Märk | J17: Kood | K17: Märk
B18: 0 | D18: 51 | E18: =CHAR(D18) -> 3 | F18: 101 | G18: =CHAR(F18) -> e | H18: 151 | I18: =CHAR(H18) -> — | J18: 201 | K18: =CHAR(J18) -> É
B19: 1 | C19: =CHAR(B19) ->  | D19: 52 | E19: =CHAR(D19) -> 4 | F19: 102 | G19: =CHAR(F19) -> f | H19: 152 | I19: =CHAR(H19) ->  | J19: 202 | K19: =CHAR(J19) -> Ź
B20: 2 | C20:  | D20: 53 | E20: 5 | F20: 103 | G20: g | H20: 153 | I20: ™ | J20: 203 | K20: Ė
B21: 3 | C21:  | D21: 54 | E21: 6 | F21: 104 | G21: h | H21: 154 | I21:  | J21: 204 | K21: Ģ
B22: 4 | C22:  | D22: 55 | E22: 7 | F22: 105 | G22: i | H22: 155 | I22: › | J22: 205 | K22: Ķ
B23: 5 | C23:  | D23: 56 | E23: 8 | F23: 106 | G23: j | H23: 156 | I23:  | J23: 206 | K23: Ī
B24: 6 | C24:  | D24: 57 | E24: 9 | F24: 107 | G24: k | H24: 157 | I24: ¯ | J24: 207 | K24: Ļ
B25: 7 | C25:  | D25: 58 | E25: : | F25: 108 | G25: l | H25: 158 | I25: ˛ | J25: 208 | K25: Š
B26: 8 | C26:  | D26: 59 | E26: ; | F26: 109 | G26: m | H26: 159 | I26:  | J26: 209 | K26: Ń
B27: 9 | D27: 60 | E27: < | F27: 110 | G27: n | H27: 160 | J27: 210 | K27: Ņ
B28: 10 | D28: 61 | E28: = | F28: 111 | G28: o | H28: 161 | I28:  | J28: 211 | K28: Ó
B29: 11 | D29: 62 | E29: > | F29: 112 | G29: p | H29: 162 | I29: ¢ | J29: 212 | K29: Ō
B30: 12 | D30: 63 | E30: ? | F30: 113 | G30: q | H30: 163 | I30: £ | J30: 213 | K30: Õ
B31: 13 | D31: 64 | E31: @ | F31: 114 | G31: r | H31: 164 | I31: ¤ | J31: 214 | K31: Ö
B32: 14 | C32:  | D32: 65 | E32: A | F32: 115 | G32: s | H32: 165 | I32:  | J32: 215 | K32: ×
B33: 15 | C33:  | D33: 66 | E33: B | F33: 116 | G33: t | H33: 166 | I33: ¦ | J33: 216 | K33: Ų
B34: 16 | C34:  | D34: 67 | E34: C | F34: 117 | G34: u | H34: 167 | I34: § | J34: 217 | K34: Ł
B35: 17 | C35:  | D35: 68 | E35: D | F35: 118 | G35: v | H35: 168 | I35: Ø | J35: 218 | K35: Ś
B36: 18 | C36:  | D36: 69 | E36: E | F36: 119 | G36: w | H36: 169 | I36: © | J36: 219 | K36: Ū
B37: 19 | C37:  | D37: 70 | E37: F | F37: 120 | G37: x | H37: 170 | I37: Ŗ | J37: 220 | K37: Ü
B38: 20 | C38:  | D38: 71 | E38: G | F38: 121 | G38: y | H38: 171 | I38: « | J38: 221 | K38: Ż
B39: 21 | C39:  | D39: 72 | E39: H | F39: 122 | G39: z | H39: 172 | I39: ¬ | J39: 222 | K39: Ž
B40: 22 | C40:  | D40: 73 | E40: I | F40: 123 | G40: { | H40: 173 | I40: ­ | J40: 223 | K40: ß
B41: 23 | C41:  | D41: 74 | E41: J | F41: 124 | G41: | | H41: 174 | I41: ® | J41: 224 | K41: ą
B42: 24 | C42:  | D42: 75 | E42: K | F42: 125 | G42: } | H42: 175 | I42: Æ | J42: 225 | K42: į
B43: 25 | C43:  | D43: 76 | E43: L | F43: 126 | G43: ~ | H43: 176 | I43: ° | J43: 226 | K43: ā
B44: 26 | C44:  | D44: 77 | E44: M | F44: 127 | G44:  | H44: 177 | I44: ± | J44: 227 | K44: ć
B45: 27 | C45:  | D45: 78 | E45: N | F45: 128 | G45: € | H45: 178 | I45: ² | J45: 228 | K45: ä
B46: 28 | D46: 79 | E46: O | F46: 129 | G46:  | H46: 179 | I46: ³ | J46: 229 | K46: å
B47: 29 | D47: 80 | E47: P | F47: 130 | G47: ‚ | H47: 180 | I47: ´ | J47: 230 | K47: ę
B48: 30 | D48: 81 | E48: Q | F48: 131 | G48:  | H48: 181 | I48: µ | J48: 231 | K48: ē
B49: 31 | D49: 82 | E49: R | F49: 132 | G49: „ | H49: 182 | I49: ¶ | J49: 232 | K49: č
B50: 32 | D50: 83 | E50: S | F50: 133 | G50: … | H50: 183 | I50: · | J50: 233 | K50: é
B51: 33 | C51: ! | D51: 84 | E51: T | F51: 134 | G51: † | H51: 184 | I51: ø | J51: 234 | K51: ź
B52: 34 | C52: " | D52: 85 | E52: U | F52: 135 | G52: ‡ | H52: 185 | I52: ¹ | J52: 235 | K52: ė
B53: 35 | C53: # | D53: 86 | E53: V | F53: 136 | G53:  | H53: 186 | I53: ŗ | J53: 236 | K53: ģ
B54: 36 | C54: $ | D54: 87 | E54: W | F54: 137 | G54: ‰ | H54: 187 | I54: » | J54: 237 | K54: ķ
B55: 37 | C55: % | D55: 88 | E55: X | F55: 138 | G55:  | H55: 188 | I55: ¼ | J55: 238 | K55: ī
B56: 38 | C56: & | D56: 89 | E56: Y | F56: 139 | G56: ‹ | H56: 189 | I56: ½ | J56: 239 | K56: ļ
B57: 39 | C57: ' | D57: 90 | E57: Z | F57: 140 | G57:  | H57: 190 | I57: ¾ | J57: 240 | K57: š
B58: 40 | C58: ( | D58: 91 | E58: [ | F58: 141 | G58: ¨ | H58: 191 | I58: æ | J58: 241 | K58: ń
B59: 41 | C59: ) | D59: 92 | E59: \ | F59: 142 | G59: ˇ | H59: 192 | I59: Ą | J59: 242 | K59: ņ
B60: 42 | C60: * | D60: 93 | E60: ] | F60: 143 | G60: ¸ | H60: 193 | I60: Į | J60: 243 | K60: ó
B61: 43 | C61: + | D61: 94 | E61: ^ | F61: 144 | G61:  | H61: 194 | I61: Ā | J61: 244 | K61: ō
B62: 44 | C62: , | D62: 95 | E62: _ | F62: 145 | G62: ‘ | H62: 195 | I62: Ć | J62: 245 | K62: õ
B63: 45 | C63: - | D63: 96 | E63: ` | F63: 146 | G63: ’ | H63: 196 | I63: Ä | J63: 246 | K63: ö
B64: 46 | C64: . | D64: 97 | E64: a | F64: 147 | G64: “ | H64: 197 | I64: Å | J64: 247 | K64: ÷
B65: 47 | C65: / | D65: 98 | E65: b | F65: 148 | G65: ” | H65: 198 | I65: Ę | J65: 248 | K65: ų
B66: 48 | C66: 0 | D66: 99 | E66: c | F66: 149 | G66: • | H66: 199 | I66: Ē | J66: 249 | K66: ł
B67: 49 | C67: 1 | D67: 100 | E67: d | F67: 150 | G67: – | H67: 200 | I67: Č | J67: 250 | K67: ś
B68: 50 | C68: 2 | D68: 101 | E68: e | F68: 151 | G68: — | H68: 201 | I68: É | J68: 251 | K68: ū
B69: Kood | C69: Märk
B70: 251 | C70: =CHAR(B70) -> ū
B71: 252 | C71: =CHAR(B71) -> ü
B72: 253 | C72: =CHAR(B72) -> ż
B73: 254 | C73: =CHAR(B73) -> ž
B74: 255 | C74: =CHAR(B74) -> ˙

Sheet LoogFun
B2: Loogikafunktsioonid
B4: AND (logav1; logav2; …) | C4: Tagastab vääruse TRUE (tõene), kui kõikide loogikaavaldiste väärtused on tõesed
B5: IF (tingimus; avaldis1; avaldis2) | C5: Kui tingimus on tõene, siis kasutatakse avaldis1, vastupididsel juhul avaldis2
B6: NOT (logav) | C6: Muudab loogikaväärtuse vastupidiseks. TRUE ==> FALSE; FALSE ==> TRUE
B7: OR (logav1; logav2; …) | C7: Tagastab vääruse TRUE (tõene), kui vähemalt ühe loogikaavaldise väärtus on tõene

Sheet AjaFun
B2: Ajafunktsioonid
B3: ajaav - ajaavaldis, erijuhul konstant või viit lahtrile
B5: TODAY () | C5: tänane kuupäev
B6: NOW () | C6: momendi kellaeg
B8: YEAR (ajaav) | C8: Eraldab ajaväärtusest aasta
B9: MONTH (ajaav) | C9: Eraldab ajaväärtusest kuu numbri
B10: DAY (ajaav) | C10: Eraldab ajaväärtusest kuu päeva numbri
B11: HOUR (ajaav) | C11: Eraldab ajaväärtusest tunnid
B12: MINUTE (ajaav) | C12: Eraldab ajaväärtusest minutid
B13: SECOND (ajaav) | C13: Eraldab ajaväärtusest minutid
B14: WEEKDAY(ajaav [; tüüp ] ) | C14: Tagastab kuupäevale vastava nädalapäeva numbri
B16: DATE (aasta; kuu; päev) | C16: Moodustab argumentide väärtuste alusel kuupäeva
B17: TIME (tund; minutd; sekd) | C17: Moodustab argumentide väärtuste alusel kellaaja
B21: =NOW() -> 2019-11-04T14:20:02.940 | C21: =YEAR(B21) -> 2019 | D21: aasta
B22: 2019-11-04T14:20:02.940 | C22: =MONTH(B22) -> 11 | D22: kuu
B23: 2019-11-04T14:20:02.940 | C23: =DAY(B23) -> 4 | D23: päev
B24: 2019-11-04T14:20:02.940 | C24: =HOUR(B24) -> 14 | D24: tunnid
B25: 2019-11-04T14:20:02.940 | C25: =MINUTE(B25) -> 20 | D25: minutid
B26: 2019-11-04T14:20:02.940 | C26: =SECOND(B26) -> 3 | D26: sekundid
B27: 2019-11-04T14:20:02.940 | C27: =WEEKDAY(B27,2) -> 1 | D27: nädalapäeva number
B28: =TODAY() -> 2019-11-04 | C28: =B28+100 -> 2020-02-12 | D28: 100 päeva edasi

Sheet VLOOKUP
D1: veeb
B2: Otsimisfunktsioon VLOOKUP
B3: Otsimine vertikaalsest tabelist
B5: VLOOKUP(otsitav; tabel; tulemi_tulp; tunnus)
B6: Otsib otsitavale vastavat väärtust tabeli esimesest tulbast ja
B7: tagastab tulemuse tulbast tulemi_tulp.
B9: otsitav - otsitav väärtus: konstant või viit lahtrile (aadress, nimi)
B10: tabel - tabel, mille esimeses tulbas toimub otsimine: piirkonna aadess või nimi
B11: tulemi_tulp - tabeli tulba number, kust võetakse tagastatav väärtus: arv või arvavaldis
B12: tunnus - määrab väärtuste järjestamise tingimuse tabeli esimeses tulbas ja ka otsimisviisi: 0 või 1
B13: 0 - väärtused tabeli esimeses tulbas võivad olla suvalises järjekorras - kindla väärtuse otsimine
B14: kui otsitavaga võrdset väärtust esimeses tulbas ei ole - veateade - #N/A
B15: 1 - väärtused tabeli esimeses tulbas peavad olema kasvamise järjekorras - vahemiku otsimine
B16: kui otsitavaga võrdset väärtust esimeses tulbas ei ole, tagastatakse lähim väiksem väärtus
B20: Mark | C20: Hind | D20: Protsessor | E20: Kõvaketas | F20: Põhimälu
B21: Frodo | C21: =VLOOKUP(Mark, Arvutid, 6, 0) -> 887 | D21: =VLOOKUP(Mark, Arvutid, 2, 0) & "; " & VLOOKUP(Mark, Arvutid, 3, 0) -> AMD Athlon64; 3 | E21: =VLOOKUP(Mark, Arvutid, 5, 0) -> 500 | F21: =VLOOKUP(Mark, Arvutid, 4, 0) -> 4072
E22: Teha siia vastavad valemid
B25: Arvutid
B26: 1 | C26: 2 | D26: 3 | E26: 4 | F26: 5 | G26: 6
B27: Mark | C27: Prots_tüüp | D27: Taktsagedus | E27: Mälu, MB | F27: Ketas,GB | G27: Hind, Kr
B28: Aragorn | C28: AMD Athlon64 | D28: 3 | E28: 512 | F28: 160 | G28: 333
B29: Arven | C29: Intel Core 2 | D29: 2.6 | E29: 256 | F29: 200 | G29: 500
B30: Balrog | C30: Intel Celeron | D30: 2.8 | E30: 256 | F30: 80 | G30: 279
B31: Eldar | C31: Intel Xeon | D31: 3 | E31: 512 | F31: 160 | G31: 420
B32: Elend | C32: Intel Celeron | D32: 4 | E32: 2048 | F32: 400 | G32: 866
B33: Faram | C33: AMD Athlon64 | D33: 3 | E33: 512 | F33: 210 | G33: 399
B34: Frodo | C34: AMD Athlon64 | D34: 3 | E34: 4072 | F34: 500 | G34: 887
B35: Gandalf | C35: Intel Xeon | D35: 3.2 | E35: 512 | F35: 160 | G35: 560
B36: Grimbold | C36: Intel Core 2 | D36: 3.8 | E36: 1024 | F36: 320 | G36: 766
B37: Kalvar | C37: Intel Xeon | D37: 3 | E37: 512 | F37: 160 | G37: 466
B38: Marvin | C38: Intel Celeron | D38: 3 | E38: 512 | F38: 160 | G38: 399
B39: Rohan | C39: AMD Athlon64 | D39: 3.5 | E39: 512 | F39: 160 | G39: 393
B40: Sauron | C40: Intel Xeon | D40: 2.5 | E40: 256 | F40: 180 | G40: 380

Sheet Valemiredaktor
B2: Valemiredaktor MS Equation 3.0
